Cogmind - Beta 16 @@@ ROGUE MODE // 2026.01.10 @ 20:46:30 Player: Cube_41 Result: Destroyed by B-86 Titan with Railgun Performance ------------- Evolutions (6) 3000 Regions Visited (10) 2000 Robots Destroyed (152) 760 Value Destroyed (4665) 4665 Prototype IDs (30) 600 Alien Tech Used (0) 0 Bonus (226) 226 TOTAL SCORE: 11251 Bonus ------- High Alert Combat Kills 63 Follower Combat Kills 42 Aligned with FarCom 300 Friendly Fire -179 Cogmind --------- Core Integrity 0/1150 Matter 128/300 Energy 64/100 System Corruption 8% Temperature Cool (9) Movement Core (50) Location -4/Upper Caves Parts ------- > --- POWER (1) -------- (None) > --- PROPULSION (4) --- (None) > --- UTILITY (12) ----- Machine Analyzer Triangulator Hacking Suite Improved Hacking Suite System Shield Improved System Shield > --- WEAPON (2) ------- (None) > --- INVENTORY (5) ---- Quantum Capacitor Peak State ------------ > --- POWER ------------ Micro Nuclear Core > --- PROPULSION ------- Improved Linear Gravjet Improved Linear Gravjet Improved Linear Gravjet Improved Linear Gravjet > --- UTILITY ---------- Large Storage Unit Structural Scanner Triangulator Target Analyzer Quantum Capacitor Advanced Thermal Shield Hacking Suite Hacking Suite Improved Hacking Suite System Shield System Shield > --- WEAPON ----------- Matter Neutralizer > --- INVENTORY -------- Improved Linear Gravjet Improved Linear Gravjet Improved Linear Gravjet Advanced Particle Charger [Rating: 89] Favorites ----------- Power Improved Deuterium Engine Engine Improved Deuterium Engine Power Core Micro Nuclear Core Propulsion Aluminum Leg Leg Aluminum Leg Hover Unit Improved Linear Gravjet Flight Unit Flying Fortress v7 Utility Hacking Suite Device Structural Scanner Storage Medium Storage Unit Processor Improved Melee Analysis Suite Hackware Hacking Suite Protection Heavy Armor Plating Weapon Greatsword Energy Gun EM Pulse Gun Energy Cannon Matter Neutralizer Ballistic Gun Light Assault Rifle Ballistic Cannon Advanced Assault Cannon Launcher Grenade Launcher Slashing Weapon Greatsword Build | -11 -10 -10 -10 -9 -8 -7 -6 -5 -4 -4 ------- Run | Yrd Mat Min Exi Min Mat Fac Fac Fac Fac Upp Slots Evolved 12 | . . . . . 4 2 2 2 2 . Power . | . . . . . . . . . . . Propulsion 2 | . . . . . 2 . . . . . Utility 10 | . . . . . 2 2 2 2 2 . Weapon . | . . . . . . . . . . . Parts Attached 116 | 7 13 8 . 3 24 13 7 21 20 . Power 14 | 1 1 1 . . 4 3 . 2 2 . Engine 7 | 1 1 1 . . 2 2 . . . . Core 7 | . . . . . 2 1 . 2 2 . Reactor . | . . . . . . . . . . . Propulsion 38 | 2 5 3 . . 12 1 . 7 8 . Treads . | . . . . . . . . . . . Leg 22 | 2 5 3 . . 12 . . . . . Wheel . | . . . . . . . . . . . Hover 8 | . . . . . . . . . 8 . Flight 8 | . . . . . . 1 . 7 . . Utility 43 | 1 3 1 . 2 4 7 7 11 7 . Device 13 | . 2 . . 2 . 1 2 3 3 . Storage 4 | 1 1 . . . . 1 . . 1 . Processor 7 | . . . . . 1 2 1 1 2 . Hackware 11 | . . . . . . 2 2 6 1 . Protection 8 | . . 1 . . 3 1 2 1 . . Artifact . | . . . . . . . . . . . Weapon 21 | 3 4 3 . 1 4 2 . 1 3 . Energy Gun 8 | 2 3 1 . . . . . . 2 . Energy Cannon 1 | . . . . . . . . . 1 . Ballistic Gun 3 | 1 . 2 . . . . . . . . Ballistic Cannon 3 | . . . . 1 2 . . . . . Launcher 4 | . 1 . . . 1 1 . 1 . . Special Weapon . | . . . . . . . . . . . Impact Weapon . | . . . . . . . . . . . Slashing Weapon 2 | . . . . . 1 1 . . . . Piercing Weapon . | . . . . . . . . . . . Special Melee Weapon . | . . . . . . . . . . . Unidentified Prototypes 1 | . . . . . . 1 . . . . Parts Lost 40 | . 3 . . . 2 . 1 19 15 . Power 3 | . . . . . 1 . . 1 1 . Propulsion 16 | . . . . . 1 . . 7 8 . Utility 16 | . 1 . . . . . 1 9 5 . Weapon 5 | . 2 . . . . . . 2 1 . Highest Loss Streak 16 | . 2 . . . 1 . 1 16 9 . To Critical Strikes . | . . . . . . . . . . . Average Backups 8 | . 5 7 8 6 6 9 14 13 4 1 Power 1 | . 1 1 1 1 1 2 2 2 . . Propulsion 1 | . 1 3 3 2 1 . 2 3 1 . Utility 3 | . 1 1 2 1 1 6 8 5 1 1 Weapon 1 | . 1 1 2 2 2 . . 1 . . Tool/Special . | . . . . . . . . . . . Unused Backups 19 | . 1 . 2 3 3 2 2 4 2 . Power 4 | . 1 . . 1 . . . 1 1 . Propulsion 3 | . . . 2 . . . 1 . . . Utility 9 | . . . . 1 1 2 1 3 1 . Weapon 3 | . . . . 1 2 . . . . . Tool/Special . | . . . . . . . . . . . Average Slot Usage (%) 79 | . 97 96 100 93 95 63 68 69 68 31 Engine 6 | . 14 14 14 14 4 6 6 1 . . Core 1 | . . . . . 4 . . 2 3 . Leg 13 | . 28 28 28 28 35 . . . . . Hover 1 | . . . . . . . . . 16 . Flight 2 | . . . . . . 6 6 5 . . Device 5 | . 11 . . 2 8 1 1 4 12 5 Storage 8 | . 14 14 14 14 9 7 6 4 1 . Processor 6 | . . . . . 1 13 13 10 2 5 Hackware 10 | . . . . . . 8 19 27 26 21 Protection 6 | . . 14 14 8 14 7 6 3 . . Energy Gun 7 | . 27 22 28 14 5 . . . 1 . Ballistic Cannon 2 | . . . . 3 11 . . . . . Slashing Weapon 2 | . . . . . . 6 5 3 . . Peak Build Rating 89 | 6 7 14 17 24 40 66 73 85 89 25 Average Rating 45 | 4 6 10 15 17 33 64 71 69 64 25 On Entrance 25 | . 6 5 14 17 16 40 66 71 18 25 Avg Prop Armor Cover (%) 7 | . . . . . . . . . 7 . Naked Turns . | . . . . . . . . . . . Heaviest Build 52 | 14 20 23 23 30 51 52 52 47 38 1 Greatest Support 60 | 20 20 25 25 25 60 57 50 50 42 3 Greatest Overweight (x) 3 | . . 1 . 1 1 1 1 3 1 . Average Overweight (x) . | . . . . . . . . . . . Largest Inventory Capacity 15 | 8 10 10 10 10 10 15 15 15 15 5 Average Capacity 11 | 6 8 10 10 10 10 12 15 14 7 5 Most Carried 15 | 1 8 9 10 10 10 15 15 15 10 2 Average Carried 9 | . 5 8 9 9 9 9 14 13 4 2 Final Capacity 15 | 8 10 10 10 10 10 15 15 5 5 5 Final Carried 15 | 1 8 9 10 10 10 15 15 2 2 2 Class Distribution -------------------- 28% | Mutant 27% | Hacker-Gladiator 17% | Scavenger-Mutant 12% | Gladiator 9% | Hacker-Mutant 4% | Hacker-Sprinter Dominant Class ---------------- Mutant | -10/Materials Scavenger-Mutant | -10/Mines Scavenger-Mutant | -10/Exiles Scavenger-Mutant | -9/Mines Mutant | -8/Materials Gladiator | -7/Factory Hacker-Gladiator | -6/Factory Hacker-Gladiator | -5/Factory Hacker-Sprinter | -4/Factory Hacker-Mutant | -4/Upper Caves Resources | -11 -10 -10 -10 -9 -8 -7 -6 -5 -4 -4 ----------- Run | Yrd Mat Min Exi Min Mat Fac Fac Fac Fac Upp Matter Collected 2820 | 227 260 203 . 73 994 500 136 297 130 . Remotely . | . . . . . . . . . . . Salvage Created 4498 | . 964 104 . 31 1211 948 536 557 147 . Parts 287 | . 48 9 . 5 74 67 36 34 14 . Haulers Intercepted 6 | . 2 . . . 1 3 . . . . Recyclers Shooed 3 | . 3 . . . . . . . . . Parts Field Recycled . | . . . . . . . . . . . Retrieved Matter . | . . . . . . . . . . . Parts Self-Destructed . | . . . . . . . . . . . Prevented . | . . . . . . . . . . . Parts Restored . | . . . . . . . . . . . Kills | -11 -10 -10 -10 -9 -8 -7 -6 -5 -4 -4 ------- Run | Yrd Mat Min Exi Min Mat Fac Fac Fac Fac Upp Combat Hostiles Destroyed 110 | . 19 7 . 4 35 15 11 16 3 . Melee 20 | . . . . . . 10 5 5 . . Guns 22 | . 11 2 . 1 8 . . . . . Cannons 19 | . . . . . 17 . . . 2 . AOE 48 | . 7 5 . 3 10 5 6 11 1 . Classes Destroyed 13 | . 6 . . . 5 2 . . . . Worker 4 | . . . . . 1 2 . 1 . . Builder 11 | . . . . . 2 6 1 . 2 . Hauler 6 | . 2 . . . 1 3 . . . . Recycler 4 | . 3 . . . 1 . . . . . Mechanic 1 | . . . . . . 1 . . . . Operator 6 | . 2 . . . 1 2 . 1 . . Watcher 9 | . 3 . . . 2 1 3 . . . Swarmer 45 | . 6 5 . 4 9 6 4 11 . . Grunt 40 | . 13 2 . . 17 4 3 1 . . Brawler 1 | . . . . . 1 . . . . . Sentry 18 | . . . . . 7 3 4 4 . . Hunter 1 | . . . . . 1 . . . . . Programmer 5 | . . . . . . 2 . . 3 . Thug 1 | . . . . . 1 . . . . . Best Kill Streak 6 | . 5 3 . 4 5 5 4 6 2 . Combat Bots Only 6 | . 4 3 . 4 5 3 4 6 2 . Max Kills in Single Turn 5 | . 3 3 . 3 3 3 4 5 1 . Gunslinging 1 | . 1 . . . . . . . . . Exploded 5 | . 3 3 . 3 2 2 4 5 1 . Melee 1 | . . . . . . 1 1 1 . . Uniques/NPCs Destroyed . | . . . . . . . . . . . Combat | -11 -10 -10 -10 -9 -8 -7 -6 -5 -4 -4 -------- Run | Yrd Mat Min Exi Min Mat Fac Fac Fac Fac Upp Hostile Shots Fired 823 | . 85 19 . 8 161 67 114 198 157 14 Missed 327 | . 28 10 . 2 48 39 50 69 75 6 Hits 496 | . 57 9 . 6 113 28 64 129 82 8 Melee 3 | . . . . . . . . 3 . . Projectile 493 | . 57 9 . 6 113 28 64 126 82 8 AOE 1 | . . . . . . . . 1 . . Critical Strikes 25 | . 3 . . . 9 . 3 5 4 1 Actively Blocked 1 | . . . . . . . . 1 . . Damage Taken 8125 | . 796 112 . 48 1498 398 648 2558 1845 222 Core 2607 | . 165 45 . 7 174 . 63 995 936 222 Absorbed by Shields 334 | . . . . . . . 55 279 . . Redirected to Shielding 101 | . . 8 . 7 8 . 2 76 . . Ignored by Resistances 200 | . . . . . 144 56 . . . . Regen/Repaired (Parts) 563 | . . . . . 103 99 . 347 14 . Core Remaining (%) 62 | 100 . . . 13 68 100 92 . . . Volleys Fired 230 | . 81 8 . 7 93 8 5 6 22 . Largest 2 | . 2 2 . 1 2 1 1 1 1 . Hottest 115 | . 100 70 . 75 115 39 39 43 105 . Shots Fired 376 | . 151 13 . 7 164 8 5 6 22 . Gun 208 | . 146 9 . 6 47 . . . . . Cannon 127 | . . . . . 105 . . . 22 . Launcher 41 | . 5 4 . 1 12 8 5 6 . . Special . | . . . . . . . . . . . Kinetic 108 | . . 3 . . 105 . . . . . Thermal 161 | . 85 1 . 6 47 . . . 22 . Explosive 38 | . 5 4 . 1 9 8 5 6 . . Electromagnetic 69 | . 61 5 . . 3 . . . . . Robot Hit Streak 19 | . 19 4 . 2 12 1 4 1 4 . Robot Miss Streak 8 | . 8 2 . 3 6 2 1 3 1 . Penetration Max 1 | . . . . . 1 . . . . . Secondary Targets 2 | . 2 . . . . . . . . . Max Gunslinging Chain 1 | . 1 . . . . . . . . . Shots Hit Robots 305 | . 102 6 . 3 100 33 18 35 8 . Core Hits 237 | . 53 13 . 4 87 28 17 28 7 . Critical Kills 5 | . . . . . 5 . . . . . Critical Parts Destroyed 6 | . . . . . 6 . . . . . Critical Strikes 43 | . 7 . . . 17 3 3 13 . . Burn 7 | . 6 . . . 1 . . . . . Destroy 12 | . . . . . 12 . . . . . Blast 4 | . . . . . 4 . . . . . Corrupt 1 | . 1 . . . . . . . . . Sever 19 | . . . . . . 3 3 13 . . Melee Attacks 116 | . . . . . 1 52 21 42 . . Impact . | . . . . . . . . . . . Slashing 116 | . . . . . 1 52 21 42 . . Piercing . | . . . . . . . . . . . Sneak Attacks 14 | . . . . . . 12 . 2 . . Combat Hostiles 1 | . . . . . . 1 . . . . Follow-up Attacks . | . . . . . . . . . . . Damage Inflicted 14535 | . 1816 478 . 199 3539 3258 1526 2982 737 . Guns 2044 | . 1279 75 . 42 648 . . . . . Cannons 2016 | . . . . . 1679 . . . 337 . Explosions 5032 | . 529 403 . 154 1204 766 634 986 356 . Melee 5379 | . . . . . . 2492 892 1995 . . Ramming 64 | . 8 . . 3 8 . . 1 44 . Kinetic 1688 | . . 9 . . 1679 . . . . . Thermal 2569 | . 812 . . 42 984 88 . . 643 . Explosive 4035 | . 355 403 . 154 775 678 634 986 50 . Electromagnetic 800 | . 641 66 . . 93 . . . . . Impact . | . . . . . . . . . . . Slashing 5379 | . . . . . . 2492 892 1995 . . Piercing . | . . . . . . . . . . . Highest Corruption 11 | . 1 1 1 1 . 3 . 11 8 8 Average Corruption 2 | . 1 1 1 1 . 2 . 3 4 8 Corruption Purged . | . . . . . . . . . . . Corruption Blocked . | . . . . . . . . . . . Effects 60 | . 9 5 2 4 . 20 . 12 4 4 Message Errors 13 | . 1 2 . 2 . 4 . 2 . 2 Matter Fused 21 | . 4 1 1 . . 7 . 7 1 . Heat Flow Errors 7 | . 2 1 . 1 . 2 . . 1 . Energy Discharges 7 | . . . 1 1 . 2 . . 2 1 Parts Fused 2 | . . . . . . 2 . . . . Data Loss (minor) 7 | . 2 . . . . 2 . 2 . 1 Misfires 1 | . . 1 . . . . . . . . Alerts 1 | . . . . . . 1 . . . . Misdirections 1 | . . . . . . . . 1 . . Overload Shots . | . . . . . . . . . . . Overflow Damage 1017 | . . . . . 209 573 57 176 2 . Projectiles 61 | . . . . . 61 . . . . . Explosions 307 | . . . . . 148 87 18 52 2 . Melee 649 | . . . . . . 486 39 124 . . Knockbacks 23 | . . . . . 23 . . . . . Impact . | . . . . . . . . . . . Kinetic 22 | . . . . . 22 . . . . . Secondary 1 | . . . . . 1 . . . . . Self-Inflicted Damage 296 | . 31 16 . . 123 . . 104 22 . Shots 8 | . 1 1 . . 4 . . 2 . . Rammed 5 | . . . . . . . . 1 4 . Targets Rammed 14 | . 4 . . 4 1 . . 1 4 . Kicked 9 | . 4 . . 4 1 . . . . . Crushed . | . . . . . . . . . . . Highest Temperature 338 | . 338 197 . 186 18 172 77 . 240 . Average Temperature 67 | . 96 54 . 82 10 55 31 . 40 . Received Heat Transfer 1490 | . 231 33 . . 657 30 230 264 18 27 Effects 1 | . . . . . . . . . 1 . Energy Bleed 1 | . . . . . . . . . 1 . Siege Activations . | . . . . . . . . . . . Martial Activations . | . . . . . . . . . . . Shielding Activations . | . . . . . . . . . . . Robots Disrupted . | . . . . . . . . . . . Combat Hostiles . | . . . . . . . . . . . Robots Corrupted . | . . . . . . . . . . . Combat Hostiles . | . . . . . . . . . . . Parts Fried 2 | . 2 . . . . . . . . . Impact Corruptions . | . . . . . . . . . . . Robots Melted 1 | . 1 . . . . . . . . . Combat Hostiles 1 | . 1 . . . . . . . . . Parts Melted 8 | . 7 . . . 1 . . . . . Heat Transferred 4855 | . 2814 . . 74 1421 50 . . 496 . Parts Sabotaged . | . . . . . . . . . . . Parts Stolen . | . . . . . . . . . . . Parts Stripped . | . . . . . . . . . . . Power Chain Reactions 3 | . 3 . . . . . . . . . Alert | -11 -10 -10 -10 -9 -8 -7 -6 -5 -4 -4 ------- Run | Yrd Mat Min Exi Min Mat Fac Fac Fac Fac Upp Maximum Alert Level 2 | . 1 . . . 2 2 1 1 1 . Low Security (%) 54 | 100 94 100 . 100 11 10 26 83 84 . Level 1 38 | . 5 . . . 86 58 73 16 15 . Level 2 6 | . . . . . 2 31 . . . . Level 3 . | . . . . . . . . . . . Level 4 . | . . . . . . . . . . . Level 5 . | . . . . . . . . . . . High Security . | . . . . . . . . . . . Max Security . | . . . . . . . . . . . Peak Influence 556 | . 218 157 . 90 410 556 376 394 300 . Initial 270 | . . 51 . . . 184 270 119 188 . Average 181 | . 77 68 . 25 277 350 248 72 114 . Influence Increases 5250 | . 617 246 . 100 1122 1001 447 1050 547 120 Destroy 0b10 Robot/C 2320 | . 380 180 . 80 700 340 220 360 60 . Destroy 0b10 Robot/NC 210 | . 50 . . . 40 75 20 15 10 . Destroy Leader 510 | . 80 30 . 10 156 88 66 60 20 . Allied During Kill 10 | . . 10 . . . . . . . . Successful Hack 149 | . 42 . . . 16 64 5 4 18 . Disable Machine 375 | . 30 . . . 45 60 15 105 120 . Anti-Garrison Action 150 | . . . . . . 150 . . . . Destroy Structure 686 | . 35 26 . 10 105 74 46 206 184 . Partial Spotted 105 | . . . . . . 30 15 45 15 . Lose Combat Pursuer 735 | . . . . . 60 120 60 255 120 120 Influence Decreases 5036 | . 484 379 . 100 715 855 755 910 703 135 Entered New Map 996 | . . 82 . . . 223 283 126 197 85 Time Decay 3092 | . 410 277 . 100 545 592 422 340 356 50 Lost Part 294 | . 30 . . . 20 . 10 84 150 . Lost Ally 160 | . . 20 . . . 40 40 60 . . Purge Threat 494 | . 44 . . . 150 . . 300 . . Squads Dispatched 57 | . 4 . . 1 11 15 12 11 3 . Investigation 24 | . 3 . . 1 4 8 6 2 . . Extermination 8 | . . . . . . 3 1 3 1 . Reinforcement 12 | . 1 . . . 4 . 2 3 2 . Assault 6 | . . . . . . 4 . 2 . . Garrison 7 | . . . . . 3 . 3 1 . . Intercept . | . . . . . . . . . . . Searches Triggered . | . . . . . . . . . . . Construction Impeded 3 | . . . . . 1 . . 1 1 . Haulers Reinforced . | . . . . . . . . . . . Active Scanning Responses . | . . . . . . . . . . . Cargo Convoy Interrupts . | . . . . . . . . . . . Stealth | -11 -10 -10 -10 -9 -8 -7 -6 -5 -4 -4 --------- Run | Yrd Mat Min Exi Min Mat Fac Fac Fac Fac Upp Distress Signals 11 | . 1 . . . 5 2 1 . 2 . Communications Jammed . | . . . . . . . . . . . Distress Signals . | . . . . . . . . . . . Times Spotted 240 | . 34 11 . 3 49 31 30 46 23 13 Peak Tracking Total 14 | . 5 5 . 4 6 5 6 14 11 9 Tactical Retreats 26 | . 1 . . . 3 4 2 9 5 2 ECM-based Alert Blocks 3 | . . . . . . . . 3 . . Traps | -11 -10 -10 -10 -9 -8 -7 -6 -5 -4 -4 ------- Run | Yrd Mat Min Exi Min Mat Fac Fac Fac Fac Upp Traps Triggered 9 | . 1 . . . . 2 1 5 . . Indirectly . | . . . . . . . . . . . Trap Hack Attempts . | . . . . . . . . . . . Triggered . | . . . . . . . . . . . Disarmed 5 | . 5 . . . . . . . . . Reprogrammed 4 | . 4 . . . . . . . . . Reused . | . . . . . . . . . . . Traps Extracted . | . . . . . . . . . . . Installed . | . . . . . . . . . . . Triggered . | . . . . . . . . . . . Machines | -11 -10 -10 -10 -9 -8 -7 -6 -5 -4 -4 ---------- Run | Yrd Mat Min Exi Min Mat Fac Fac Fac Fac Upp Machines Disabled 26 | . 2 . . . 3 5 1 7 8 . Max in Single Turn 4 | . 2 . . . 2 2 1 2 4 . Garrison Access 5 | . . . . . 1 1 1 1 1 . Machines Repaired . | . . . . . . . . . . . Machines Dismantled . | . . . . . . . . . . . Machines Sabotaged . | . . . . . . . . . . . Overloaded Fab Kills . | . . . . . . . . . . . Hacking | -11 -10 -10 -10 -9 -8 -7 -6 -5 -4 -4 --------- Run | Yrd Mat Min Exi Min Mat Fac Fac Fac Fac Upp Machines Accessed 62 | . 7 . 2 1 8 20 11 9 4 . Terminals 32 | . 7 . . . 5 11 4 4 1 . Fabricators 6 | . . . . . . 3 2 1 . . Repair Stations 7 | . . . . . 1 3 . 2 1 . Recycling Units 5 | . . . . . . 2 1 1 1 . Scanalyzers 3 | . . . . . 1 . 2 . . . Garrison Access 6 | . . . . . 1 1 2 1 1 . Total Hacks 255 | . 33 . 2 1 31 70 49 57 12 . Successful 165 | . 22 . 2 1 15 37 36 41 11 . Failed 89 | . 11 . . . 16 33 13 15 1 . Catastrophic 15 | . 1 . . . 2 5 1 6 . . Database Lockouts 1 | . . . . . . . . 1 . . Manual 93 | . 11 . 1 . 8 30 11 30 2 . Terminals 161 | . 33 . . . 18 47 23 36 4 . Fabricators 14 | . . . . . . 7 4 3 . . Repair Stations 32 | . . . . . 3 9 . 16 4 . Recycling Units 13 | . . . . . . 5 4 1 3 . Scanalyzers 25 | . . . . . 9 . 16 . . . Garrison Access 7 | . . . . . 1 2 2 1 1 . Terminal Hacks 69 | . 16 . 2 1 4 14 10 19 3 . Record 5 | . . . 1 . . 1 . 3 . . Part Schematic 3 | . . . . . . 2 1 . . . Prototype ID Bank 3 | . 2 . . . . 1 . . . . Open Door 1 | . . . . 1 . . . . . . Level Access Points 1 | . . . . . . 1 . . . . Branch Access Points 2 | . 1 . . . . . 1 . . . Emergency Access Points 2 | . 1 . . . . 1 . . . . Machine Index 1 | . . . . . . . . 1 . . Terminal Index 1 | . . . . . . . . 1 . . Fabricator Index 2 | . . . . . . . 1 1 . . Recycling Unit Index 1 | . . . . . . . . . 1 . Alert Level 5 | . 1 . . . 1 1 1 . 1 . Unreport Threat 4 | . 1 . . . 1 . . 2 . . Locate Traps 4 | . 2 . . . . 2 . . . . Disarm Traps 1 | . 1 . . . . . . . . . Reprogram Traps 1 | . 1 . . . . . . . . . Dispatch Records 5 | . 1 . . . . 1 1 2 . . Maintenance Status 1 | . 1 . . . . . . . . . Security Status 3 | . 1 . . . . . 1 1 . . Patrol Status 1 | . 1 . . . . . . . . . Transport Status 1 | . . . . . . 1 . . . . Assault Status 1 | . . . . . . . . 1 . . Recall Investigation 2 | . . . . . 1 . 1 . . . Recall Extermination 4 | . . . . . . . 1 3 . . Recall Reinforcements 4 | . . . . . 1 . 1 2 . . Hauler Manifests 1 | . . . . . . 1 . . . . Registered Components 3 | . . . . . . 1 . 1 1 . Zone Layout 5 | . 2 . . . . 1 1 1 . . Proto ID Catalog 1 | . . . 1 . . . . . . . Fabricator Hacks 10 | . . . . . . 4 4 2 . . Load Schematic 5 | . . . . . . 2 2 1 . . Build 5 | . . . . . . 2 2 1 . . Repair Station Hacks 23 | . . . . . 2 3 . 15 3 . Scan Component 12 | . . . . . 1 2 . 8 1 . Repair 10 | . . . . . 1 1 . 7 1 . Refit 1 | . . . . . . . . . 1 . Recycling Unit Hacks 10 | . . . . . . 4 2 1 3 . Process 3 | . . . . . . 1 1 . 1 . Report Inventory 4 | . . . . . . 2 . 1 1 . Retrieve Matter 3 | . . . . . . 1 1 . 1 . Scanalyzer 20 | . . . . . 5 . 15 . . . Insert Component 5 | . . . . . 1 . 4 . . . Analyze 5 | . . . . . 1 . 4 . . . Retrieve Study 10 | . . . . . 3 . 7 . . . Garrison Access Hacks 3 | . . . . . 1 . 1 . 1 . Seal Access 3 | . . . . . 1 . 1 . 1 . Unauthorized Hacks 30 | . 6 . . . 3 12 4 4 1 . Terminals 26 | . 6 . . . 3 10 3 3 1 . Track 3 | . 1 . . . . 2 . . . . Botnet 22 | . 5 . . . 3 7 3 3 1 . Operators 1 | . . . . . . 1 . . . . Fabricators 1 | . . . . . . 1 . . . . Report 1 | . . . . . . 1 . . . . Repair Stations . | . . . . . . . . . . . Recycling Units . | . . . . . . . . . . . Scanalyzers . | . . . . . . . . . . . Garrison Access 3 | . . . . . . 1 1 1 . . Reprogram 3 | . . . . . . 1 1 1 . . Data Cores Recovered 2 | . 1 . . . . 1 . . . . Used 1 | . 1 . . . . . . . . . Hacking Detections 53 | . 7 . . . 7 19 9 8 3 . Full Trace Events 25 | . 6 . . . 6 7 5 1 . . Feedback Events 1 | . 1 . . . . . . . . . Corruption 1 | . 1 . . . . . . . . . Feedback Blocked 1 | . . . . . . . 1 . . . Robot Schematics Acquired . | . . . . . . . . . . . Robots Built . | . . . . . . . . . . . Authchips . | . . . . . . . . . . . Time . | . . . . . . . . . . . Total Robot Build Rating . | . . . . . . . . . . . Part Schematics Acquired 8 | . . . . . 1 2 5 . . . Parts Built 9 | . . . . . . 4 4 1 . . Authchips . | . . . . . . . . . . . Time 330 | . . . . . . 93 190 47 . . Total Part Build Rating 35 | . . . . . . 10 20 5 . . Part Studies Acquired 10 | . . . . . 3 . 7 . . . Parts Repaired 10 | . . . . . 1 1 . 7 1 . Time 351 | . . . . . 38 19 . 268 26 . Parts Recycled . | . . . . . . . . . . . Recycled Matter 215 | . . . . . . 162 49 . 4 . Retrieved Matter 306 | . . . . . . 253 49 . 4 . Retrieved Components . | . . . . . . . . . . . Parts Scanalyzed 5 | . . . . . 1 . 4 . . . Part Schematics Acquired 5 | . . . . . 1 . 4 . . . Parts Damaged . | . . . . . . . . . . . Bothacking | -11 -10 -10 -10 -9 -8 -7 -6 -5 -4 -4 ------------ Run | Yrd Mat Min Exi Min Mat Fac Fac Fac Fac Upp Used RIF Installer . | . . . . . . . . . . . Robots Hacked . | . . . . . . . . . . . Non-combat . | . . . . . . . . . . . Combat . | . . . . . . . . . . . Robot Hacks Applied . | . . . . . . . . . . . Relay Couplers Released 6 | . . . . . . 2 . 4 . . Machine Destruction 6 | . . . . . . 2 . 4 . . Fabnet Peak Effective % . | . . . . . . . . . . . Robots Rewired 1 | . . . . . . . . 1 . . Allies Hacked 1 | . . . . . . 1 . . . . Hacks Repelled . | . . . . . . . . . . . Allies | -11 -10 -10 -10 -9 -8 -7 -6 -5 -4 -4 -------- Run | Yrd Mat Min Exi Min Mat Fac Fac Fac Fac Upp Total Allies 8 | . . 1 . . . 2 2 3 . . Largest Group 2 | . . 1 . . . 2 2 2 . . Highest-Rated Group 82 | . . 31 . . . 53 58 82 . . Highest-Rated Ally 49 | . . 31 . . . 37 29 49 . . Total Orders 4 | . . . . . . . . 4 . . STAY 2 | . . . . . . . . 2 . . FOLLOW 1 | . . . . . . . . 1 . . EXPLORE 1 | . . . . . . . . 1 . . Ally Attacks 27 | . . 4 . . . 9 6 8 . . Total Damage 1078 | . . 65 . . . 354 73 586 . . Kills 8 | . . 2 . . . 2 . 4 . . Allies Corrupted . | . . . . . . . . . . . Allies Melted 1 | . . . . . . . . 1 . . Intel | -11 -10 -10 -10 -9 -8 -7 -6 -5 -4 -4 ------- Run | Yrd Mat Min Exi Min Mat Fac Fac Fac Fac Upp Active Infowar (turns) 2655 | . . . . . 237 . 325 1188 800 105 Structural 2115 | . . . . . . . 325 1171 619 . Machine Analysis 453 | . . . . . 237 . . . 111 105 Triangulation 905 | . . . . . . . . . 800 105 ECM 37 | . . . . . . . . 37 . . Robot Analysis Total . | . . . . . . . . . . . Derelict Logs Recovered 4 | . . 2 . 1 . . . . . 1 Drone Launches 2 | . . . . . . . . 2 . . Drone Recoveries . | . . . . . . . . . . . Exploration | -11 -10 -10 -10 -9 -8 -7 -6 -5 -4 -4 ------------- Run | Yrd Mat Min Exi Min Mat Fac Fac Fac Fac Upp Turns Passed 10062 | 61 1421 617 291 390 1647 1862 1036 1826 806 105 Spaces Moved 9439 | 45 890 470 241 233 881 2614 1447 1503 907 208 Core 616 | 7 . . . . . . . 261 140 208 Treads . | . . . . . . . . . . . Legs 2755 | 38 890 470 241 233 881 2 . . . . Wheels . | . . . . . . . . . . . Hover 767 | . . . . . . . . . 767 . Flight 5301 | . . . . . . 2612 1447 1242 . . Fastest Speed 28 | 50 120 120 120 120 97 50 50 31 28 50 Average Speed 69 | 109 120 120 120 121 117 50 50 48 39 50 Slowest Speed 280 | 120 120 190 120 190 190 150 150 280 120 50 Overloaded Moves . | . . . . . . . . . . . Propulsion Burnouts . | . . . . . . . . . . . Robots Hopped 37 | . . . . . . 8 20 9 . . Potential Cave-ins . | . . . . . . . . . . . Cave-ins Triggered . | . . . . . . . . . . . Exploration Rate (%) 47 | 4 98 95 62 35 62 45 33 34 21 37 Regions Visited 10 Branch Regions 4 Pre-discovered Areas 2 | . . 1 1 . . . . . . . Known Exits Taken 2 | . 1 . . . . 1 . . . . Unknown Exits Taken 8 | 1 . 1 1 1 1 . 1 1 1 . Scrap Searched 2 | . . 1 . 1 . . . . . . Spaces Dug 43 | . 14 . . . 4 8 5 7 5 . Terrain Destroyed 503 | . 33 29 . 10 114 67 65 84 101 . Melee 21 | . . . . . 1 8 5 7 . . Projectile 39 | . . . . . 29 . . . 10 . AOE 443 | . 33 29 . 10 84 59 60 77 91 . Terrain Rammed . | . . . . . . . . . . . Walls Destroyed . | . . . . . . . . . . . Machines Disabled . | . . . . . . . . . . . Actions | -11 -10 -10 -10 -9 -8 -7 -6 -5 -4 -4 --------- Run | Yrd Mat Min Exi Min Mat Fac Fac Fac Fac Upp Total 12337 | 54 1088 509 244 336 1322 3046 1693 2504 1332 209 Wait 2146 | . 80 6 . 77 272 317 200 839 355 . Move 9359 | 44 889 469 240 232 880 2597 1410 1484 906 208 Hop 33 | . . . . . . 8 16 9 . . Pick Up 83 | 2 8 2 1 3 12 18 10 18 9 . Fast Attach 50 | 6 1 2 . . 8 6 2 11 14 . Attach 60 | . 1 5 . 2 6 12 7 21 6 . Detach 29 | . . 5 . 2 2 6 3 7 4 . Swap 74 | 1 16 6 . 3 28 5 3 9 3 . Drop 88 | 1 8 6 3 6 19 17 8 11 9 . Fire 230 | . 81 8 . 7 93 8 5 6 22 . Melee 116 | . . . . . 1 52 21 42 . . Ram 5 | . . . . . . . . 1 4 . Kick 9 | . 4 . . 4 1 . . . . . Crush . | . . . . . . . . . . . Escape Stasis 44 | . . . . . . . 8 36 . . Rewire 11 | . . . . . . . . 10 . 1 Trap . | . . . . . . . . . . . Miscellaneous . | . . . . . . . . . . . Route ------- -11/Scrapyard -10/Materials (discovered 5 exits: [*Mat x3] / *Min / [*Sub]) -10/Mines (discovered 3 exits: [*Mat x2] / *Exi) -10/Exiles (discovered 2 exits: *Min x2) -9/Mines -8/Materials -7/Factory (discovered 6 exits: *Fac x4 / [*Low x2]) -6/Factory (discovered 5 exits: *Fac / *Low x2 / *Ext x2) -5/Factory (discovered 2 exits: *Fac / *Upp) -4/Factory (discovered 3 exits: [*Res] / [*Upp x2]) -4/Upper Caves History --------- Turn | Location | Event 5 | -11/Scrapyard | Discovered new exit (range 13) 62 | -11/Scrapyard | Entered Materials 317 | -10/Materials | Build established: Mutant 360 | -10/Materials | Discovered new exit (range 7) 568 | -10/Materials | Discovered new exit (range 15) 762 | -10/Materials | Discovered new exit (range 16) 1019 | -10/Materials | Identified exit to Mines 1103 | -10/Materials | Discovered new exit (range 15) 1262 | -10/Materials | Derelicts attacked the area 1296 | -10/Materials | Discovered new exit (range 15) 1438 | -10/Materials | Core integrity fell below 50% 1483 | -10/Materials | Entered Mines 1492 | -10/Mines | Escorted by a lone wolf Derelict 1512 | -10/Mines | Learned location of Storage (-9) 1666 | -10/Mines | Learned Materials stockpile data 1668 | -10/Mines | A weapon hastily lodged in a ceiling crevice suddenly fell to the ground 1719 | -10/Mines | Core integrity fell below 20% 1854 | -10/Mines | Discovered new exit (range 6) 1960 | -10/Mines | Discovered new exit (range 7) 2012 | -10/Mines | Build established: Scavenger-Mutant 2095 | -10/Mines | Deemed a non-threat by the Exiles lab entrance 2095 | -10/Mines | Discovered new exit (range 5) 2100 | -10/Mines | Entered Exiles 2116 | -10/Exiles | Discovered new exit (range 15) 2130 | -10/Exiles | Met 8R-AWN 2151 | -10/Exiles | Met EX-HEX 2192 | -10/Exiles | Met EX-BIN 2206 | -10/Exiles | Aligned with FarCom system 2207 | -10/Exiles | Given EX-Vault access code 2236 | -10/Exiles | Opened EX-Vault 2245 | -10/Exiles | Found Flying Fortress v7 2288 | -10/Exiles | Exiles lab attacked by MAIN.C 2343 | -10/Exiles | Learned location of Zion (-6) 2378 | -10/Exiles | Discovered new exit (range 14) 2391 | -10/Exiles | Left Exiles lab with Flying Fortress v7 2391 | -10/Exiles | Entered Mines 2549 | -9/Mines | Learned Materials terminal intel 2678 | -9/Mines | Met a Derelict shopkeep closing up shop 2775 | -9/Mines | Discovered new exit (range 5) 2781 | -9/Mines | Entered Materials 2781 | -8/Materials | Evolved 4 slots: Propulsion x2, Utility x2 2783 | -8/Materials | Loaded intel: 12 terminal locations 3443 | -8/Materials | Garrison activated, responded to threat 3820 | -8/Materials | Build established: Mutant 3835 | -8/Materials | Repaired Reactive Plating 4206 | -8/Materials | Discovered new exit (range 3) 4428 | -8/Materials | Entered Factory 4428 | -7/Factory | Evolved 2 slots: Utility x2 4579 | -7/Factory | Repaired Reactive Plating 4641 | -7/Factory | Discovered new exit (range 5) 4939 | -7/Factory | Build established: Hacker-Gladiator 5254 | -7/Factory | Discovered new exit (range 14) 5291 | -7/Factory | Build established: Gladiator 5587 | -7/Factory | Discovered new exit (range 5) 5749 | -7/Factory | Fabricated Propulsion Shielding? 5823 | -7/Factory | Fabricated Greatsword (x2) 5863 | -7/Factory | Identified exit to Factory 6028 | -7/Factory | First assault squad dispatched 6290 | -7/Factory | Entered another Factory area 6290 | -6/Factory | Evolved 2 slots: Utility x2 6525 | -6/Factory | Discovered new exit (range 10) 6571 | -6/Factory | Build established: Hacker-Gladiator 6603 | -6/Factory | Fabricated Nuclear Pulse Thruster? 6844 | -6/Factory | Discovered new exit (range 15) 6917 | -6/Factory | Garrison activated, responded to threat 7041 | -6/Factory | Identified exit to Lower Caves 7041 | -6/Factory | Identified exit to Extension 7268 | -6/Factory | Discovered new exit (range 15) 7293 | -6/Factory | Fabricated Nuclear Pulse Thruster? 7326 | -6/Factory | Entered another Factory area 7326 | -5/Factory | Evolved 2 slots: Utility x2 7970 | -5/Factory | Repaired Neutrino Core 8015 | -5/Factory | Repaired Greatsword+ 8043 | -5/Factory | Repaired Propulsion Shielding 8088 | -5/Factory | Repaired Imp. Shield Generator 8115 | -5/Factory | Repaired Lrg. Storage Unit 8182 | -5/Factory | Repaired Nuclear Pulse Thruster+ 8192 | -5/Factory | Discovered new exit (range 18) 8373 | -5/Factory | Fabricated Imp. Hacking Suite? 8489 | -5/Factory | Central database locked down 8580 | -5/Factory | Repaired Greatsword+ 8937 | -5/Factory | Identified exit to Upper Caves 9015 | -5/Factory | Core integrity fell below 50% 9043 | -5/Factory | Core integrity fell below 20% 9048 | -5/Factory | System corruption reached 10% 9052 | -5/Factory | Garrison activated, responded to threat 9072 | -5/Factory | Lost 16 parts (1p7n6u2w) 9149 | -5/Factory | Discovered new exit (range 6) 9152 | -5/Factory | Entered another Factory area 9152 | -4/Factory | Evolved 2 slots: Utility x2 9184 | -4/Factory | Repaired Structural Scanner 9189 | -4/Factory | Found Quantum Capacitor 9537 | -4/Factory | Discovered new exit (range 15) 9585 | -4/Factory | Discovered new exit (range 3) 9798 | -4/Factory | Lost 5 parts (4n1u) 9895 | -4/Factory | Core integrity fell below 50% 9923 | -4/Factory | Spotted B-86 Titan 9934 | -4/Factory | Spotted B-86 Titan 9944 | -4/Factory | Core integrity fell below 20% 9950 | -4/Factory | Lost 9 parts (1p4n3u1w) 9953 | -4/Factory | Discovered new exit (range 8) 9958 | -4/Factory | Entered Upper Caves 10042 | -4/Upper Caves | Attracted the attention of an 0b10 outpost 10060 | -4/Upper Caves | Learned location of 1 exit from Research 10061 | -4/Upper Caves | Attracted the attention of an 0b10 checkpoint 10063 | -4/Upper Caves | Spotted B-86 Titan 10063 | -4/Upper Caves | Destroyed by B-86 Titan with Railgun Last Messages --------------- 09943_ Slug penetrates Fusion Modulator. 09953_ EXIT=FOUND LOCATION=UNKNOWN GOAL=ESCAPE 09971_ P3P/UJH4 10016_ UGJ1H2#FHBDZ &JTKPI8>MX